bitfinex-derivatives/quotes_SOLF0:USTF0_20250919
["timestamp","ask_amount","ask_price","bid_price","bid_amount"]
[1758275058624,7.08,242.88,242.82,6.54]
[1758275059019,10.18,242.88,242.82,6.54]
[1758275059320,13.12,242.88,242.82,6.54]
[1758275059615,0.02689434,242.89,242.82,6.54]
[1758275069426,0.44689434,242.89,242.81,20.0]
[1758275069632,4.57845498,242.86,242.66,7.08]
[1758275069835,7.43845498,242.82,242.65,1.64]
[1758275070129,2.86,242.8,242.61,7.08]
[1758275070333,2.86,242.75,242.63,1.64]
[1758275070524,2.86,242.73,242.66,1.64]
[1758275070729,52.39578074,242.72,242.66,1.64]
[1758275070924,52.39578074,242.72,242.65,7.08]
[1758275070925,2.86,242.73,242.65,7.08]
[1758275071129,30.86,242.72,242.69,7.08]
[1758275071330,0.03137466,242.71,242.69,7.08]
[1758275071528,0.03137466,242.71,242.52,57.697]
[1758275071732,0.03137466,242.71,242.52,7.08]
[1758275071935,3.4,242.72,242.68,1.64]
[1758275072132,2.86,242.77,242.68,1.64]
[1758275072332,61.76592797,242.83,242.5,4.59659256]
[1758275072333,2.86,242.75,242.59,7.08]
[1758275072534,0.03147719,242.72,242.55,7.08]
[1758275072730,0.03147719,242.72,242.7,7.08]
[1758275072930,2.86,242.75,242.7,7.08]
[1758275073337,0.03029204,242.73,242.7,7.08]
[1758275073632,0.03029204,242.73,242.7,1.64]
[1758275073836,0.03029204,242.73,242.7,8.72]
[1758275074137,0.03029204,242.73,242.72,7.08]
[1758275074439,0.03029204,242.73,242.67,7.08]
[1758275074634,0.03029204,242.73,242.7,8.72]
[1758275075934,0.03029204,242.73,242.6,7.08]
[1758275076140,0.03029204,242.73,242.71,8.72]
[1758275076435,0.03029204,242.73,242.71,7.08]
[1758275077331,0.03029204,242.73,242.6,7.08]
[1758275077529,0.03029204,242.73,242.71,7.08]
[1758275077729,0.03029204,242.73,242.7,1.64]
[1758275078335,0.03029204,242.73,242.71,7.08]
[1758275078834,0.03029204,242.73,242.7,1.64]
[1758275079140,0.03029204,242.73,242.71,7.08]
[1758275079934,0.03029204,242.73,242.59,3.708]
[1758275080142,0.03029204,242.73,242.71,7.08]
[1758275080933,0.03029204,242.73,242.59,3.708]
[1758275081138,0.03029204,242.73,242.71,7.08]
[1758275081340,0.03029204,242.73,242.7,1.64]
[1758275081931,0.03029204,242.73,242.71,7.08]
[1758275082538,0.03029204,242.73,242.7,1.64]
[1758275082741,0.03029204,242.73,242.71,7.08]
[1758275082941,0.03029204,242.73,242.7,1.64]
[1758275083846,0.03029204,242.73,242.6,7.08]
[1758275084146,0.03029204,242.73,242.72,8.72]
[1758275084338,71.94,242.82,242.72,8.72]
[1758275084538,0.02738874,242.75,242.72,7.08]
[1758275084748,0.02738874,242.75,242.74,8.72]
[1758275085147,71.94,242.82,242.74,8.72]
[1758275085540,0.03037131,242.77,242.75,7.08]
[1758275087646,0.03037131,242.77,242.65,7.08]
[1758275087834,0.03037131,242.77,242.74,1.64]
[1758275088039,0.03037131,242.77,242.67,7.08]
[1758275088237,98.32,242.81,242.75,1.64]
[1758275089041,2.88709635,242.8,242.75,1.64]
[1758275089245,2.88709635,242.8,242.76,7.08]
[1758275089439,2.88709635,242.8,242.59,71.1393]
[1758275089440,0.02709635,242.8,242.61,57.6748]
[1758275089641,0.02709635,242.8,242.77,7.08]
[1758275089945,0.53603,242.86,242.8,7.08]
[1758275090137,0.03156164,242.81,242.8,7.08]
[1758275090547,0.03156164,242.81,242.8,8.72]
[1758275091743,0.03156164,242.81,242.62,7.08]
[1758275091947,0.03156164,242.81,242.78,7.08]
[1758275092248,2.86,242.85,242.78,7.08]
[1758275092447,0.03026046,242.82,242.78,7.08]
[1758275092845,2.89026046,242.82,242.78,7.08]
[1758275093246,104.61026046,242.82,242.78,7.08]
[1758275095545,0.03026046,242.82,242.78,7.08]
[1758275095746,0.03026046,242.82,242.81,1.64]
[1758275095948,0.03026046,242.82,242.81,8.72]
[1758275096153,0.53603,242.86,242.82,7.08]
[1758275096446,0.53603,242.86,242.81,1.64]
[1758275096447,0.03017511,242.84,242.69,21.66]
[1758275096846,0.53603,242.86,242.7,6.59]
[1758275097153,0.53603,242.86,242.85,8.23]
[1758275100944,0.02626231,242.88,242.85,8.23]
[1758275101145,0.02626231,242.88,242.87,6.81]
[1758275101344,0.02626231,242.88,242.87,8.45]
[1758275101549,101.64,242.92,242.88,6.81]
[1758275101852,0.02978826,242.9,242.75,6.81]
[1758275102057,0.02978826,242.9,242.89,8.45]
[1758275102247,2.87,242.97,242.89,8.45]
[1758275102452,101.62,242.96,242.89,6.81]
[1758275102647,0.02710451,242.92,242.75,6.81]
[1758275102857,0.02710451,242.92,242.77,6.81]
[1758275103056,101.62,242.96,242.91,1.64]
[1758275103253,105.02,242.96,242.92,6.81]
[1758275103452,105.02,242.96,242.92,8.45]
[1758275103656,105.04886444,242.96,242.92,8.45]
[1758275103857,101.64886444,242.96,242.82,6.81]
[1758275104061,101.64886444,242.96,242.94,1.64]
[1758275104355,101.62,242.96,242.94,1.64]
[1758275105057,3.4,242.95,242.73,6.81]
[1758275105252,3.4,242.95,242.89,1.64]
[1758275105759,0.02694373,242.94,242.84,6.81]
[1758275105962,0.02694373,242.94,242.88,1.64]
[1758275106454,3.4,242.93,242.88,1.64]
[1758275106957,3.4,242.93,242.84,6.81]
[1758275107162,3.4,242.93,242.85,1.64]
[1758275109158,3.4,242.93,242.8,6.81]
[1758275109357,3.4,242.93,242.83,1.64]
[1758275109856,0.02898675,242.9,242.83,1.64]
[1758275110061,105.02,242.89,242.83,1.64]
[1758275110261,101.62,242.88,242.84,3.59501487]
[1758275110565,101.62,242.88,242.84,1.64]
[1758275110759,3.4,242.93,242.87,1.64]
[1758275111064,31.9,242.99,242.92,1.64]
[1758275111260,31.9,242.99,242.93,3.59506327]
[1758275111461,31.9,242.99,242.95,1.64]
[1758275111657,0.02978538,242.98,242.95,1.64]
[1758275111859,3.42978538,242.98,242.95,1.64]
[1758275112660,101.76978538,242.98,242.96,6.81]
[1758275112861,101.76978538,242.98,242.95,1.64]
[1758275113058,105.16978538,242.98,242.95,1.64]
[1758275113258,101.76978538,242.98,242.96,6.81]
[1758275113457,101.72978538,242.98,242.86,6.81]
[1758275113657,101.72978538,242.98,242.96,1.64]
[1758275114366,0.02978538,242.98,242.97,6.81]
[1758275114554,0.02978538,242.98,242.97,8.45]
[1758275115264,0.02978538,242.98,242.97,1.64]
[1758275115464,3.42978538,242.98,242.91,6.81]
[1758275115763,3.4,242.97,242.91,6.81]
[1758275116666,3.4,242.97,242.93,8.45]
[1758275117368,3.43090561,242.97,242.93,8.45]
[1758275117560,0.03090561,242.97,242.93,1.64]
[1758275117754,3.43090561,242.97,242.89,6.81]
[1758275117958,3.4,242.96,242.92,1.64]
[1758275119363,0.03090561,242.97,242.82,6.81]
[1758275119666,0.03090561,242.97,242.94,1.64]
[1758275119868,105.08,243.0,242.94,1.64]
[1758275120065,3.43035314,242.98,242.94,1.64]
[1758275120265,3.4,242.97,242.94,1.64]
[1758275121174,101.68,242.96,242.94,1.64]
[1758275121764,105.08,242.96,242.94,1.64]
[1758275122369,0.03035314,242.98,242.94,1.64]
[1758275122566,101.62,242.97,242.95,6.81]
[1758275123069,0.03035314,242.98,242.96,8.45]
[1758275123265,101.62,242.97,242.96,8.45]
[1758275123570,101.62,242.97,242.96,6.81]
[1758275123967,101.62,242.97,242.96,8.45]
[1758275124267,101.62,242.97,242.96,12.03901065]
[1758275124666,101.62,242.97,242.91,6.81]
[1758275124874,3.4,242.96,242.93,1.64]
[1758275125366,102.3658979,242.97,242.93,1.64]
[1758275125580,3.4,242.96,242.93,1.64]
[1758275126166,102.3658979,242.97,242.93,1.64]
[1758275126666,3.4,242.96,242.93,1.64]
[1758275127871,102.3658979,242.97,242.93,1.64]
[1758275128072,3.4,242.96,242.87,6.81]
[1758275128272,3.4,242.96,242.91,1.64]
[1758275128469,102.3658979,242.97,242.92,3.59212341]
[1758275128674,102.3658979,242.97,242.93,3.59212341]
[1758275128877,102.3658979,242.97,242.91,1.64]
[1758275129070,3.4,242.96,242.92,3.6023216]
[1758275129269,3.4,242.96,242.93,3.6023216]
[1758275129477,3.4,242.96,242.91,1.64]
[1758275129664,102.3658979,242.97,242.92,3.60306503]
[1758275129864,3.4,242.96,242.93,3.60306503]
[1758275130065,105.7658979,242.97,242.91,1.64]
[1758275130269,0.7458979,242.97,242.92,3.60306503]
[1758275130468,101.74,242.96,242.94,1.64]
[1758275130771,101.74,242.96,242.95,8.71]
[1758275131469,101.74,242.96,242.95,1.64]
[1758275132070,0.74542853,242.97,242.95,1.64]
[1758275132270,101.74,242.96,242.95,1.64]
[1758275133278,101.74,242.96,242.95,12.31619479]
[1758275133870,0.02887786,242.97,242.96,7.07]
[1758275134075,0.02887786,242.97,242.96,10.67619479]
[1758275134582,0.02887786,242.97,242.96,12.31619479]
[1758275135481,101.72,243.03,242.96,11.09619479]
[1758275135780,101.72,243.03,242.97,3.60619479]
[1758275135975,101.72,243.03,242.99,7.07]
[1758275136183,101.72,243.03,243.0,10.67619479]
[1758275136375,101.72,243.03,243.01,3.60619479]
[1758275136576,101.72,243.03,243.02,3.60619479]
[1758275137478,315.82991667,243.14,243.02,3.60619479]
[1758275137679,1.79,243.13,243.0,7.07]
[1758275137874,1.79,243.11,243.01,3.60755226]
[1758275138079,1.79,243.09,243.02,3.60755226]
[1758275138278,101.74,243.1,242.96,7.07]
[1758275138483,1.79,243.09,242.97,3.60905408]
[1758275138678,106.28991667,243.1,242.98,3.60905408]
[1758275138879,1.79,243.09,242.99,3.60905408]
[1758275139084,1.79,243.09,243.0,3.60905408]
[1758275139383,1.79,243.09,242.92,7.07]
[1758275139583,106.28991667,243.1,242.93,3.61063741]
[1758275139786,1.79,243.09,242.94,3.61063741]
[1758275139977,106.28991667,243.1,242.95,3.61063741]
[1758275140175,1.79,243.08,242.96,3.61063741]
[1758275140382,1.79,243.08,242.97,3.61063741]
[1758275140684,1.79,243.08,242.98,3.61063741]
[1758275140884,1.79,243.08,242.99,3.61063741]
[1758275141177,1.79,243.08,243.0,3.61063741]
[1758275141384,1.79,243.08,243.01,3.61063741]
[1758275141683,1.79,243.08,242.99,7.07]
[1758275141684,1.79,243.06,243.02,3.61063741]
[1758275141886,1.79,243.06,243.03,3.61063741]
[1758275142185,1.79,243.1,242.99,7.07]
[1758275142388,101.72,243.09,243.0,3.61369398]
[1758275142683,101.72,243.09,243.01,3.61369398]
[1758275142883,101.72,243.09,243.02,3.61369398]
[1758275143078,101.72,243.09,243.03,3.61369398]
[1758275143280,101.72,243.09,243.04,3.6130862]
[1758275143281,1.79,243.08,243.04,3.6130862]
[1758275143582,1.79,243.08,243.05,3.61349767]
[1758275143778,1.79,243.08,242.99,7.07]
[1758275143982,1.79,243.08,243.0,3.61349767]
[1758275144184,1.79,243.08,243.01,3.61349767]
[1758275144482,1.79,243.08,242.99,7.07]
[1758275144683,1.79,243.08,243.0,3.61417926]
[1758275144886,1.79,243.08,243.01,3.61417926]
[1758275145187,1.79,243.08,242.99,7.07]
[1758275145382,1.79,243.08,243.0,3.61381114]
[1758275145588,1.79,243.08,243.01,3.61381114]
[1758275145788,1.79,243.08,242.99,7.07]
[1758275145989,1.79,243.08,243.0,3.61381114]
[1758275146180,1.79,243.08,243.01,3.61381114]
[1758275146386,1.79,243.08,242.99,7.07]
[1758275146584,1.79,243.08,243.0,3.61344415]
[1758275146789,6.33991667,243.07,242.85,7.07]
[1758275146988,6.33991667,243.07,242.87,7.07]
[1758275147188,6.33991667,243.07,242.89,7.07]
[1758275147491,6.33991667,243.07,242.91,7.07]
[1758275147691,6.33991667,243.07,242.93,7.07]
[1758275147890,6.33991667,243.07,242.95,7.07]
[1758275148089,6.33991667,243.07,242.96,3.61380003]
[1758275148293,6.33991667,243.07,242.97,3.61380003]
[1758275148493,6.33991667,243.07,242.98,3.61380003]
[1758275148695,6.33991667,243.07,242.95,7.07]
[1758275148896,6.33991667,243.07,242.96,3.61372859]
[1758275149091,6.33991667,243.07,242.97,3.61372859]
[1758275149396,101.64,243.06,242.98,10.68372859]
[1758275149586,101.64,243.06,242.98,7.07]
[1758275150290,1.79,243.05,242.9,7.07]
[1758275150490,1.79,243.05,242.92,7.07]
[1758275150690,1.79,243.05,242.94,7.07]
[1758275150894,1.79,243.05,242.95,3.61386321]
[1758275151090,1.79,243.05,242.96,3.61386321]
[1758275151285,1.79,243.05,242.94,7.07]
[1758275151488,1.79,243.05,242.95,3.61429228]
[1758275151793,1.79,243.05,242.96,3.61429228]
[1758275151994,1.79,243.05,242.97,3.61429228]
[1758275152195,1.79,243.05,242.94,7.07]
[1758275152386,1.79,243.05,242.95,3.61527929]
[1758275152587,1.79,243.05,242.97,7.07]
[1758275152793,101.6,243.04,242.98,3.61527929]
[1758275152995,101.6,243.04,242.97,7.07]
[1758275153186,101.58,243.03,242.98,3.61527929]
[1758275153396,101.58,243.03,242.97,7.07]
[1758275153696,101.58,243.03,242.84,38.02798578]
[1758275153697,101.58,243.03,242.99,7.07]
[1758275153896,103.37,243.03,242.99,7.07]
[1758275154092,0.7162336,243.12,243.01,7.07]
[1758275154093,6.33991667,243.07,243.01,7.07]
[1758275154292,101.56,243.06,243.03,7.07]
[1758275155897,101.56,243.06,242.92,7.07]
[1758275156097,101.56,243.06,242.94,7.07]
[1758275156394,101.56,243.06,242.96,7.07]
[1758275156599,101.56,243.06,242.98,6.9]
[1758275156799,101.56,243.06,242.99,3.61971646]
[1758275156998,101.56,243.06,243.0,3.61971646]
[1758275157201,101.56,243.06,243.02,6.9]
[1758275157499,101.56,243.06,243.03,3.61971646]
[1758275157697,101.56,243.06,243.04,3.61971646]
[1758275157896,101.56,243.06,243.02,6.9]
[1758275158101,103.34,243.06,243.03,3.61927775]
[1758275158298,103.34,243.06,243.04,3.61927775]
[1758275158499,103.34,243.06,243.02,6.9]
[1758275158698,103.34,243.06,243.03,3.60583765]
[1758275158901,103.34,243.06,243.04,3.60583765]
[1758275159102,103.34,243.06,243.02,6.9]
[1758275159300,103.34,243.06,243.03,3.60583765]
[1758275159501,103.34,243.06,243.04,3.60583765]
[1758275159700,103.34,243.06,243.02,6.9]
[1758275159902,103.34,243.06,243.03,3.60567381]
[1758275160102,103.34,243.06,243.04,3.60567381]
[1758275160303,103.34,243.06,243.02,6.9]
[1758275160503,103.34,243.06,243.03,3.6055128]
[1758275160701,103.34,243.06,243.04,3.6055128]
[1758275160900,103.34,243.06,243.02,6.9]
[1758275161101,103.34,243.06,243.03,3.6055128]
[1758275161302,103.34,243.06,243.04,3.6055128]
[1758275161499,103.34,243.06,243.02,6.9]
[1758275161701,103.34,243.06,243.03,3.60560961]
[1758275161898,103.34,243.06,243.04,3.60560961]
[1758275162101,103.34,243.06,243.02,6.9]
[1758275162300,1.77,243.1,243.03,3.60556984]
[1758275162605,101.4,243.06,243.04,3.60556984]
[1758275162801,101.4,243.06,243.04,7.01]
[1758275163202,1.77,243.1,243.04,7.01]
[1758275163402,101.38,243.06,243.04,7.01]
[1758275163804,101.38,243.06,242.95,7.01]
[1758275164004,101.38,243.06,242.97,7.01]
[1758275164205,1.77,243.1,242.99,7.01]
[1758275164406,101.38,243.09,243.0,3.60594283]
[1758275164606,101.38,243.09,243.01,3.60594283]
[1758275164811,101.36,243.08,243.02,3.60594283]
[1758275165105,1.77,243.07,243.03,3.60594283]
[1758275165307,1.77,243.07,243.04,3.60594283]
[1758275165507,1.77,243.07,243.05,3.60594283]
[1758275165714,1.77,243.07,242.99,7.01]
[1758275166009,1.77,243.07,243.0,3.60653934]
[1758275166208,1.77,243.07,243.01,3.60653934]
[1758275166408,101.36,243.08,243.02,3.60653934]
[1758275166612,101.36,243.08,243.03,3.60653934]
[1758275166912,1.77,243.07,243.04,3.60653934]
[1758275167213,1.77,243.07,242.95,7.01]
[1758275167513,101.36,243.08,242.96,3.60742323]
[1758275167715,101.36,243.08,242.97,3.60742323]
[1758275167909,1.77,243.07,242.98,3.60742323]
[1758275168109,1.77,243.07,242.99,3.60742323]
[1758275168310,1.77,243.07,243.0,3.60742323]
[1758275168511,1.77,243.07,243.01,3.60742323]
[1758275168710,101.36,243.08,243.02,3.60742323]
[1758275168911,101.36,243.08,243.03,3.60742323]
[1758275169112,101.36,243.08,243.04,3.60742323]
[1758275169308,101.36,243.08,242.95,7.01]
[1758275169512,105.90991667,243.08,242.96,3.60786979]
[1758275169816,105.90991667,243.08,242.95,7.01]
[1758275169817,1.77,243.07,242.97,3.60786979]
[1758275170009,4.54991667,243.07,242.98,3.60786979]
[1758275170205,1.77,243.06,242.99,3.60786979]
[1758275170410,1.77,243.06,242.95,7.01]
[1758275170411,4.54991667,243.07,243.0,3.60786979]
[1758275170615,1.77,243.06,243.01,3.60786979]
[1758275170815,1.77,243.06,242.95,7.01]
[1758275171111,1.77,243.06,242.96,3.60868658]
[1758275171316,1.77,243.06,242.97,3.60868658]
[1758275171510,4.54991667,243.07,242.98,3.60868658]
[1758275171711,1.77,243.06,242.99,3.60868658]
[1758275171909,4.54991667,243.07,243.0,3.60868658]
[1758275172115,1.77,243.06,243.01,3.60868658]
[1758275172413,4.54991667,243.06,243.02,3.60868658]
[1758275172610,4.54991667,243.06,242.95,7.01]
[1758275172812,4.54991667,243.06,242.96,3.61006371]
[1758275173016,1.77,243.05,242.97,3.61006371]
[1758275173214,4.54991667,243.06,242.98,3.61006371]
[1758275173409,1.77,243.05,242.99,3.61006371]
[1758275173613,1.77,243.05,243.0,3.61006371]
[1758275173818,4.54991667,243.06,243.01,3.61006371]
[1758275174020,1.77,243.04,242.95,7.01]
[1758275174220,6.31991667,243.04,242.96,3.61103339]
[1758275174520,6.31991667,243.03,242.97,3.61103339]
[1758275174720,4.54991667,243.03,242.98,3.61103339]
[1758275174916,1.77,243.02,242.99,3.61103339]
[1758275175116,102.97,243.01,242.95,7.01]
[1758275175318,102.97,243.01,242.96,3.61153667]
[1758275175319,1.77,243.0,242.96,3.61153667]
[1758275175518,101.2,243.01,242.97,3.61153667]
[1758275175720,1.77,243.0,242.91,7.01]
[1758275178428,1.77,242.99,242.91,7.01]
[1758275178818,1.77,242.98,242.91,7.01]
[1758275179019,4.54991667,242.98,242.82,7.01]
[1758275179220,1.77,242.97,242.82,7.01]
[1758275180529,4.54991667,242.98,242.82,7.01]
[1758275180827,4.54991667,242.96,242.82,7.01]
[1758275181023,1.77,242.95,242.88,0.02621325]
[1758275182430,6.31991667,242.95,242.88,0.02621325]
[1758275182631,1.77,242.93,242.88,0.02621325]
[1758275182830,1.77,242.91,242.88,0.02621325]
[1758275184232,1.77,242.89,242.88,0.02621325]
[1758275184626,2.19,242.89,242.88,0.02621325]
[1758275185134,0.42,242.89,242.75,7.01]
[1758275185325,101.18,242.92,242.75,7.01]
[1758275185521,1.77,242.91,242.75,7.01]
[1758275185825,101.18,242.92,242.75,7.01]
[1758275186024,1.77,242.9,242.75,7.01]
[1758275186224,124.0,242.91,242.75,7.01]
[1758275186426,1.77,242.9,242.75,7.01]
[1758275186631,124.0,242.91,242.75,7.01]
[1758275187428,1.77,242.9,242.75,7.01]
[1758275187635,124.0,242.91,242.75,7.01]
[1758275188030,1.80118489,242.85,242.75,7.01]
[1758275188232,101.2,242.84,242.75,7.01]
[1758275189032,0.03118489,242.85,242.75,7.01]
[1758275189237,0.03118489,242.85,242.78,7.1]
[1758275189634,15.94,242.86,242.78,7.1]
[1758275189833,0.02742903,242.84,242.78,7.1]
[1758275190834,17.0,242.83,242.78,7.1]
[1758275191035,0.02742903,242.84,242.78,7.1]
[1758275191231,33.16742903,242.84,242.78,7.1]
[1758275192536,0.02742903,242.84,242.78,7.1]
[1758275199638,1.79,242.93,242.78,7.52]
[1758275199838,28.32,242.92,242.78,7.1]
[1758275201746,41.54,242.94,242.79,7.1]
[1758275202143,101.22,242.95,242.79,7.1]
[1758275202343,313.06,242.97,242.79,7.1]
[1758275202544,101.24,242.96,242.8,7.1]
[1758275203047,101.24,242.96,242.86,0.0276816]
[1758275203244,101.24,242.96,242.87,7.1]
[1758275204547,313.06,242.97,242.87,7.1]
[1758275204749,101.24,242.96,242.87,7.1]
[1758275205138,101.22,242.95,242.87,7.1]
[1758275205637,1.82,242.93,242.87,7.1]
[1758275205840,1.82,242.93,242.86,0.0276816]
[1758275207947,101.3,242.92,242.86,0.0276816]
[1758275209248,1.82,242.9,242.86,0.0276816]
[1758275209948,1.82,242.9,242.86,7.1276816]
[1758275210149,101.3,242.91,242.86,0.0276816]
[1758275210343,103.12,242.91,242.87,7.1]
[1758275210546,1.82,242.91,242.87,7.1]
[1758275210745,101.24,242.9,242.87,7.1]
[1758275211343,1.82,242.95,242.87,7.1]
[1758275211548,101.24,242.9,242.87,7.1]
[1758275212446,103.06,242.9,242.86,0.0276816]
[1758275213351,103.06,242.9,242.86,7.1276816]
[1758275216655,103.06,242.9,242.87,6.66]
[1758275217351,103.06,242.9,242.86,0.0276816]
[1758275217655,101.24,242.9,242.86,0.0276816]
[1758275218350,1.83,242.89,242.86,0.0276816]
[1758275219655,101.24,242.9,242.86,0.0276816]
[1758275219955,1.83,242.89,242.86,0.0276816]
[1758275221451,0.42,242.88,242.67,6.51]
[1758275221655,101.24,242.9,242.67,6.51]
[1758275221656,1.8,242.89,242.67,6.51]
[1758275222054,101.24,242.9,242.67,6.51]
[1758275222250,105.78991667,242.9,242.67,6.51]
[1758275222454,4.54991667,242.88,242.67,6.51]
[1758275222655,0.0278478,242.81,242.67,6.51]
[1758275222855,20.34,242.8,242.67,6.51]
[1758275223357,1.8,242.79,242.67,6.51]
[1758275223556,0.02916502,242.76,242.67,6.51]
[1758275225854,1.8,242.75,242.67,6.51]
[1758275227261,1.8,242.75,242.55,6.51]
[1758275227958,0.02856208,242.67,242.56,3.7084]
[1758275228162,0.02856208,242.67,242.57,6.51]
[1758275228954,0.02856208,242.67,242.58,3.7081]
[1758275229154,0.02856208,242.67,242.59,6.51]
[1758275229359,30.12,242.71,242.59,6.51]
[1758275229760,0.0310839,242.65,242.59,6.51]
[1758275237971,17.48,242.64,242.42,6.51]
[1758275238179,311.54,242.63,242.42,6.51]
[1758275238370,75.76,242.62,242.42,6.51]
[1758275238570,88.0298573,242.62,242.42,6.51]
[1758275238772,1.8,242.54,242.42,6.51]
[1758275238967,0.03016731,242.55,242.42,6.51]
[1758275239773,0.03016731,242.55,242.46,6.51]
[1758275244379,0.03016731,242.55,242.52,6.51]
[1758275244680,1.8,242.65,242.52,6.51]
[1758275245180,1.8,242.65,242.53,3.7089]
[1758275245579,1.8,242.65,242.54,6.51]
[1758275246473,1.8,242.65,242.48,102.18]
[1758275246474,1.83,242.76,242.58,6.51]
[1758275247183,1.83,242.76,242.59,6.51]
[1758275247584,1.83,242.76,242.66,6.51]
[1758275247983,311.64,242.77,242.66,6.51]
[1758275248384,104.09,242.81,242.68,7.16]
[1758275248984,1.83,242.81,242.68,7.16]
[1758275249187,1.83,242.81,242.7,7.16]
[1758275249389,1.83,242.81,242.72,0.03032943]
[1758275251792,2.25,242.81,242.72,0.03032943]
[1758275252390,1.82,242.79,242.72,0.03032943]
[1758275252793,1.82,242.77,242.72,0.03032943]
[1758275253189,1.82,242.75,242.72,0.03032943]
[1758275253494,1.82,242.73,242.72,0.03032943]
[1758275253694,102.38,242.73,242.72,0.03032943]
[1758275253897,1.82,242.73,242.64,7.16]
[1758275254490,1.82,242.73,242.66,0.03108057]
[1758275255391,102.3,242.74,242.66,0.03108057]
[1758275258090,1.82,242.78,242.66,0.03108057]
[1758275258396,25.92,242.78,242.66,0.03108057]
[1758275262498,4.54991667,242.77,242.66,0.03108057]
[1758275262799,1.82,242.76,242.66,0.03108057]
[1758275263193,6.36991667,242.76,242.66,0.03108057]
[1758275263697,1.82,242.76,242.66,0.03108057]
[1758275264004,6.36991667,242.76,242.66,0.03108057]
[1758275264197,1.82,242.76,242.66,0.03108057]
[1758275266503,6.36991667,242.76,242.66,0.03108057]
[1758275269595,1.82,242.72,242.66,0.03108057]
[1758275273001,1.82,242.74,242.66,0.03108057]
[1758275273202,103.82,242.74,242.67,7.16]
[1758275273807,1.82,242.74,242.66,0.03108057]
[1758275274101,102.06,242.73,242.66,7.19108057]
[1758275274300,1.82,242.78,242.66,7.19108057]
[1758275274699,311.6,242.79,242.66,7.19108057]
[1758275274700,102.14,242.77,242.66,7.19108057]
[1758275275511,102.14,242.77,242.66,10.89798057]
[1758275275812,102.14,242.77,242.66,3.73798057]
[1758275276013,102.14,242.77,242.67,7.16]
[1758275276310,1.82,242.76,242.67,7.16]
[1758275280812,1.82,242.76,242.66,0.03108057]
[1758275283414,6.36991667,242.76,242.66,0.03108057]
[1758275284208,4.54991667,242.73,242.66,0.03108057]
[1758275284510,1.83,242.72,242.66,0.03108057]
[1758275286212,6.37991667,242.72,242.66,0.03108057]
[1758275286406,1.83,242.7,242.66,0.03108057]
[1758275286606,102.04,242.69,242.66,0.03108057]
[1758275286809,102.04,242.69,242.67,7.2]
[1758275287214,102.02,242.68,242.67,7.2]
[1758275287816,102.0,242.69,242.67,7.2]
[1758275289124,4.54991667,242.77,242.67,7.2]
[1758275289314,1.83,242.75,242.67,7.2]
[1758275289509,6.37991667,242.75,242.66,0.03108057]
[1758275289714,4.54991667,242.74,242.66,0.03108057]